[Event "44th Chess Olympiad Open 2022"]
[Site "Chennai"]
[Date "2022.08.01"]
[Round "4.53"]
[White "Diarra, Sirike"]
[Black "Dias, Vanderson"]
[Result "0-1"]
[WhiteElo "1641"]
[BlackElo "2139"]
[Annotator "NA RC"]
[PlyCount "106"]
[EventDate "2022.??.??"]
[TimeControl "60"]

1. d4 {[%emt 0:00:12]} Nf6 {[%emt 0:00:14]} 2. c4 {[%emt 0:00:17]} e6 {[%emt 0:
00:00]} 3. Nf3 {[%emt 0:00:14]} d5 {[%emt 0:01:18]} 4. e3 {[%emt 0:00:07]} Be7
{[%emt 0:04:36]} 5. Bd3 {[%emt 0:00:14]} b6 {[%emt 0:04:14]} 6. O-O {[%emt 0:
00:00]} Bb7 {[%emt 0:00:16]} 7. b3 {[%emt 0:01:08]} Nbd7 {[%emt 0:02:33]} 8.
Bb2 {[%emt 0:00:44]} c5 {[%emt 0:03:11]} 9. Nbd2 {[%emt 0:00:26]} O-O {[%emt 0:
00:00]} 10. Qe2 {[%emt 0:00:15]} Rc8 {[%emt 0:00:57]} 11. Rad1 {[%emt 0:00:04]}
Qc7 {[%emt 0:01:50]} 12. Rc1 {[%emt 0:00:52]} Bd6 {[%emt 0:01:06]} 13. Rfe1 {
[%emt 0:02:50]} Ne4 {[%emt 0:01:27]} 14. h3 {[%emt 0:01:31]} h6 {[%emt 0:01:49]
} 15. cxd5 {[%emt 0:01:05]} exd5 {[%emt 0:00:10]} 16. Nf1 {[%emt 0:00:44]} Qd8
{[%emt 0:05:27]} 17. Red1 {[%emt 0:02:38]} Qe7 {[%emt 0:06:11]} 18. Bxe4 {
[%emt 0:01:01]} dxe4 {[%emt 0:00:32]} 19. N3d2 {[%emt 0:00:06]} cxd4 {[%emt 0:
00:00]} 20. exd4 {[%emt 0:04:22]} f5 {[%emt 0:06:00]} 21. Nc4 {[%emt 0:00:00]}
Ba6 {[%emt 0:11:03]} 22. Nfe3 {[%emt 0:01:05]} f4 {[%emt 0:09:18]} 23. Ng4 {
[%emt 0:03:09]} f3 {[%emt 0:02:15]} 24. gxf3 {[%emt 0:02:53]} h5 {[%emt 0:00:
00]} 25. Qxe4 {[%emt 0:02:22]} Bxc4 {[%emt 0:01:18]} 26. bxc4 {[%emt 0:01:56]}
hxg4 {[%emt 0:00:24]} 27. Qd5+ {[%emt 0:00:39]} Rf7 {[%emt 0:05:24]} 28. Re1 {
[%emt 0:00:12]} Qh4 {[%emt 0:06:52]} 29. Qxd6 {[%emt 0:06:04]} Rxf3 {[%emt 0:
00:00]} 30. Qe6+ {[%emt 0:00:18]} Kh8 {[%emt 0:03:13]} 31. Qxg4 {[%emt 0:04:33]
} Qxf2+ {[%emt 0:00:00]} 32. Kh1 {[%emt 0:00:03]} Rg3 {[%emt 0:04:46]} 33. Re2
{[%emt 0:02:02]} Rxg4 {[%emt 0:01:26]} 34. Rxf2 {[%emt 0:00:04]} Rh4 {[%emt 0:
00:00]} 35. Kg2 {[%emt 0:00:09]} Nf6 {[%emt 0:00:05]} 36. d5 {[%emt 0:00:56]}
Rhxc4 {[%emt 0:00:53]} 37. Rxc4 {[%emt 0:00:31]} Rxc4 {[%emt 0:00:09]} 38. d6 {
[%emt 0:00:12]} Kg8 {[%emt 0:03:07]} 39. Kg3 {[%emt 0:02:35]} Ne4+ {[%emt 0:00:
00]} 40. Kg2 {[%emt 0:00:15]} Nxd6 {[%emt 0:00:25]} 41. Ba3 {[%emt 0:30:59]}
Ne4 {[%emt 0:30:31]} 42. Rf8+ {[%emt 0:00:27]} Kh7 {[%emt 0:00:01]} 43. Rf7 {
[%emt 0:01:39]} Rc2+ {[%emt 0:01:33]} 44. Kf1 {[%emt 0:00:16]} Rxa2 {[%emt 0:
00:00]} 45. Be7 {[%emt 0:02:14]} Kg6 {[%emt 0:01:24]} 46. Rf4 {[%emt 0:02:19]}
Ng3+ {[%emt 0:00:24]} 47. Ke1 {[%emt 0:00:26]} Re2+ {[%emt 0:00:07]} 48. Kd1 {
[%emt 0:00:04]} Rxe7 {[%emt 0:01:01]} 49. Rg4+ {[%emt 0:00:42]} Kh5 {[%emt 0:
00:00]} 50. Rxg3 {[%emt 0:00:09]} Kh4 {[%emt 0:00:23]} 51. Rf3 {[%emt 0:00:34]}
g5 {[%emt 0:00:41]} 52. Rc3 {[%emt 0:00:14]} Re5 {[%emt 0:00:30]} 53. Kc2 {
[%emt 0:00:12]} Rc5 {[%emt 0:00:33]} 0-1

[Event "44th Chess Olympiad Open 2022"]
[Site "Chennai"]
[Date "2022.08.01"]
[Round "4.54"]
[White "Mushore, Emarald Takudzwa"]
[Black "Wojciechowski, Paul"]
[Result "1-0"]
[WhiteElo "2153"]
[BlackElo "1944"]
[Annotator "NA RC"]
[PlyCount "69"]
[EventDate "2022.??.??"]
[TimeControl "60"]

1. e4 {[%emt 0:00:05]} c5 {[%emt 0:00:06]} 2. Nf3 {[%emt 0:00:08]} d6 {[%emt 0:
00:00]} 3. d4 {[%emt 0:00:06]} cxd4 {[%emt 0:00:06]} 4. Nxd4 {[%emt 0:00:06]}
Nf6 {[%emt 0:00:06]} 5. Nc3 {[%emt 0:00:09]} a6 {[%emt 0:00:12]} 6. Be3 {
[%emt 0:00:19]} e5 {[%emt 0:00:29]} 7. Nb3 {[%emt 0:00:06]} Be6 {[%emt 0:00:38]
} 8. f3 {[%emt 0:00:15]} Nbd7 {[%emt 0:01:09]} 9. Qd2 {[%emt 0:00:13]} Be7 {
[%emt 0:01:09]} 10. g4 {[%emt 0:00:32]} Nb6 {[%emt 0:04:31]} 11. O-O-O {
[%emt 0:07:46]} O-O {[%emt 0:02:09]} 12. Kb1 {[%emt 0:02:11]} Rc8 {[%emt 0:00:
00]} 13. g5 {[%emt 0:02:10]} Nfd7 {[%emt 0:04:47]} 14. h4 {[%emt 0:02:12]} Qc7
{[%emt 0:15:00]} 15. h5 {[%emt 0:02:31]} f5 {[%emt 0:18:52]} 16. gxf6 {[%emt 0:
00:00]} Nxf6 {[%emt 0:04:26]} 17. Qg2 {[%emt 0:03:19]} Rf7 {[%emt 0:06:02]} 18.
Bd3 {[%emt 0:01:41]} Nc4 {[%emt 0:12:55]} 19. Bxc4 {[%emt 0:03:22]} Qxc4 {
[%emt 0:01:48]} 20. Rd3 {[%emt 0:16:24]} Qc7 {[%emt 0:07:55]} 21. f4 {[%emt 0:
00:00]} exf4 {[%emt 0:01:39]} 22. Bxf4 {[%emt 0:00:08]} Nd7 {[%emt 0:00:34]}
23. Bg5 {[%emt 0:01:05]} Bxg5 {[%emt 0:05:50]} 24. Qxg5 {[%emt 0:00:10]} Bxb3 {
[%emt 0:00:54]} 25. axb3 {[%emt 0:00:18]} Ne5 {[%emt 0:00:06]} 26. Rdd1 {
[%emt 0:04:37]} Rf2 {[%emt 0:03:05]} 27. Qe3 {[%emt 0:02:26]} Rcf8 {[%emt 0:00:
00]} 28. Qd4 {[%emt 0:00:29]} R8f6 {[%emt 0:00:48]} 29. h6 {[%emt 0:04:13]} g6
{[%emt 0:00:24]} 30. Qd5+ {[%emt 0:01:31]} Kf8 {[%emt 0:01:40]} 31. Qd4 {
[%emt 0:05:50]} b5 {[%emt 0:00:46]} 32. Rhe1 {[%emt 0:04:16]} a5 {[%emt 0:00:
00]} 33. Re2 {[%emt 0:00:22]} Rxe2 {[%emt 0:00:19]} 34. Nxe2 {[%emt 0:00:01]}
Ke7 {[%emt 0:00:15]} 35. Nc3 {[%emt 0:01:20]} 1-0

[Event "44th Chess Olympiad Open 2022"]
[Site "Chennai"]
[Date "2022.08.01"]
[Round "4.54"]
[White "Mwadzura, Roy"]
[Black "Forbes, Garry"]
[Result "1-0"]
[WhiteElo "2093"]
[BlackElo "1908"]
[Annotator "NA RC"]
[PlyCount "73"]
[EventDate "2022.??.??"]
[TimeControl "60"]

1. e4 {[%emt 0:00:31]} d5 {[%emt 0:00:06]} 2. exd5 {[%emt 0:00:11]} Nf6 {
[%emt 0:00:05]} 3. d4 {[%emt 0:00:45]} Bg4 {[%emt 0:00:35]} 4. f3 {[%emt 0:00:
00]} Bf5 {[%emt 0:00:17]} 5. c4 {[%emt 0:00:28]} e6 {[%emt 0:02:33]} 6. dxe6 {
[%emt 0:01:03]} Nc6 {[%emt 0:03:23]} 7. Be3 {[%emt 0:13:09]} Bb4+ {[%emt 0:00:
00]} 8. Nc3 {[%emt 0:00:33]} Qe7 {[%emt 0:12:47]} 9. Bd3 {[%emt 0:17:24]} Bxe6
{[%emt 0:28:12]} 10. Qd2 {[%emt 0:06:30]} O-O-O {[%emt 0:05:57]} 11. Nge2 {
[%emt 0:00:48]} Rhe8 {[%emt 0:04:19]} 12. Bf2 {[%emt 0:04:51]} Kb8 {[%emt 0:00:
00]} 13. O-O {[%emt 0:07:20]} g5 {[%emt 0:02:50]} 14. d5 {[%emt 0:10:47]} Bxd5
{[%emt 0:13:28]} 15. cxd5 {[%emt 0:00:45]} Nxd5 {[%emt 0:00:07]} 16. Nxd5 {
[%emt 0:03:07]} Rxd5 {[%emt 0:00:45]} 17. Qc2 {[%emt 0:00:46]} Rxd3 {[%emt 0:
00:00]} 18. Qxd3 {[%emt 0:00:05]} Qxe2 {[%emt 0:00:02]} 19. Qxe2 {[%emt 0:00:
00]} Rxe2 {[%emt 0:00:02]} 20. a3 {[%emt 0:00:13]} Ba5 {[%emt 0:06:11]} 21. b4
{[%emt 0:00:07]} Bb6 {[%emt 0:00:01]} 22. Bxb6 {[%emt 0:00:07]} axb6 {[%emt 0:
00:00]} 23. Rfe1 {[%emt 0:00:11]} Rd2 {[%emt 0:01:00]} 24. Rad1 {[%emt 0:00:25]
} Rxd1 {[%emt 0:01:08]} 25. Rxd1 {[%emt 0:00:07]} Kc8 {[%emt 0:00:21]} 26. Rd5
{[%emt 0:00:34]} h6 {[%emt 0:00:28]} 27. Rf5 {[%emt 0:00:22]} Nd8 {[%emt 0:00:
00]} 28. Rf6 {[%emt 0:00:13]} h5 {[%emt 0:00:16]} 29. Rf5 {[%emt 0:02:04]} g4 {
[%emt 0:00:55]} 30. Rxh5 {[%emt 0:00:16]} gxf3 {[%emt 0:00:07]} 31. gxf3 {
[%emt 0:00:04]} Kd7 {[%emt 0:02:33]} 32. h4 {[%emt 0:02:10]} Ne6 {[%emt 0:00:
00]} 33. Rh8 {[%emt 0:02:18]} c5 {[%emt 0:00:00]} 34. Kf2 {[%emt 0:00:05]} Kc6
{[%emt 0:00:38]} 35. h5 {[%emt 0:02:19]} cxb4 {[%emt 0:00:33]} 36. axb4 {
[%emt 0:00:07]} Kb5 {[%emt 0:00:00]} 37. Rg8 {[%emt 0:00:43]} 1-0

[Event "44th Chess Olympiad Open 2022"]
[Site "Chennai"]
[Date "2022.08.01"]
[Round "4.54"]
[White "Belzo, Krzysztof"]
[Black "Zhemba, Jemusse"]
[Result "0-1"]
[WhiteElo "2080"]
[BlackElo "2162"]
[Annotator "NA RC"]
[PlyCount "60"]
[EventDate "2022.??.??"]
[TimeControl "60"]

1. d4 {[%emt 0:00:04]} Nf6 {[%emt 0:00:32]} 2. Bf4 {[%emt 0:00:16]} d5 {
[%emt 0:01:09]} 3. e3 {[%emt 0:01:01]} c5 {[%emt 0:00:33]} 4. c3 {[%emt 0:00:
00]} Nc6 {[%emt 0:00:25]} 5. Nd2 {[%emt 0:00:42]} Bf5 {[%emt 0:01:34]} 6. Qb3 {
[%emt 0:02:53]} Qd7 {[%emt 0:00:59]} 7. Ngf3 {[%emt 0:05:48]} c4 {[%emt 0:00:
00]} 8. Qd1 {[%emt 0:05:30]} e6 {[%emt 0:01:39]} 9. Nh4 {[%emt 0:04:00]} Be7 {
[%emt 0:02:22]} 10. Nxf5 {[%emt 0:14:56]} exf5 {[%emt 0:00:10]} 11. b3 {
[%emt 0:00:08]} b5 {[%emt 0:02:31]} 12. Be2 {[%emt 0:03:27]} O-O {[%emt 0:00:
00]} 13. O-O {[%emt 0:00:06]} Ba3 {[%emt 0:02:49]} 14. Qc2 {[%emt 0:04:28]}
Rfc8 {[%emt 0:04:28]} 15. bxc4 {[%emt 0:06:06]} bxc4 {[%emt 0:04:34]} 16. Rab1
{[%emt 0:00:52]} g6 {[%emt 0:02:15]} 17. Rfe1 {[%emt 0:07:41]} Bd6 {[%emt 0:00:
00]} 18. Bxd6 {[%emt 0:07:03]} Qxd6 {[%emt 0:00:20]} 19. f3 {[%emt 0:03:09]}
Re8 {[%emt 0:04:39]} 20. Bf1 {[%emt 0:04:00]} Rab8 {[%emt 0:02:22]} 21. e4 {
[%emt 0:09:41]} Rxb1 {[%emt 0:01:39]} 22. Qxb1 {[%emt 0:02:46]} fxe4 {[%emt 0:
00:00]} 23. fxe4 {[%emt 0:00:05]} Qf4 {[%emt 0:00:17]} 24. exd5 {[%emt 0:03:21]
} Rb8 {[%emt 0:03:22]} 25. Qc2 {[%emt 0:03:23]} Nxd4 {[%emt 0:03:14]} 26. cxd4
{[%emt 0:01:00]} Qxd4+ {[%emt 0:00:25]} 27. Kh1 {[%emt 0:00:01]} Ng4 {[%emt 0:
00:00]} 28. Ne4 {[%emt 0:09:57]} Re8 {[%emt 0:00:32]} 29. Qxc4 {[%emt 0:00:58]}
Nf2+ {[%emt 0:00:47]} 30. Nxf2 {[%emt 0:00:18]} Rxe1 {[%emt 0:00:02]} 0-1

[Event "44th Chess Olympiad Open 2022"]
[Site "Chennai"]
[Date "2022.08.01"]
[Round "4.54"]
[White "Carpenter, Paul A"]
[Black "Makoto, Rodwell"]
[Result "1/2-1/2"]
[WhiteElo "1938"]
[BlackElo "2346"]
[Annotator "TA"]
[PlyCount "87"]
[EventDate "2022.??.??"]
[TimeControl "60"]

{[%evp 9,87,5,21,9,19,-28,-18,-30,4,0,45,39,93,10,43,50,118,39,72,61,109,102,
109,47,1,42,23,47,66,-14,178,169,482,518,534,537,652,652,630,410,406,406,513,
481,482,462,462,425,411,445,401,431,430,423,418,385,488,418,472,449,542,526,
411,308,245,0,0,0,0,0,1929,1997,3065,1197,1197,1127,1022,842,915,0]} 1. e4 {
[%emt 0:00:09]} e5 {[%emt 0:01:20]} 2. Nf3 {[%emt 0:02:24]} Nc6 {[%emt 0:01:19]
} 3. d3 {[%emt 0:03:06]} d5 {[%emt 0:01:07]} 4. h3 {[%emt 0:02:14]} f5 {
[%emt 0:06:25]} 5. exd5 {[%emt 0:17:17]} Qxd5 {[%emt 0:03:38]} 6. Nc3 {[%emt 0:
00:00] C44: Ponziani Opening and Scotch Gambit.} Qd6 {[%emt 0:10:43] [#]} 7.
Bd2 $146 {[%emt 0:08:02]} (7. d4 {is superior.}) ({Predecessor:} 7. Be2 Nf6 8.
O-O Be7 9. Re1 Be6 10. Bf1 O-O-O 11. Qe2 Nd7 12. Nb5 Qb4 13. a4 {0-1 (43)
Hvenekilde,J (2127)-Knudsen,J (1939) Ballerup 2011}) 7... a6 $11 {[%emt 0:00:
00]} 8. g3 {[%emt 0:07:55] The position is equal.} Bd7 {[%emt 0:06:07]} 9. Bg2
{[%emt 0:02:24]} O-O-O {[%emt 0:03:37]} 10. O-O {[%emt 0:08:13]} h6 {[%emt 0:
00:00]} (10... Nh6 $14) 11. a3 {[%emt 0:04:21]} (11. Re1 $16) 11... g5 {
[%emt 0:05:51]} 12. b4 $1 {[%emt 0:06:28]} Nce7 {[%emt 0:16:00]} ({Black
should try} 12... Nf6 $14) 13. a4 {[%emt 0:02:56]} (13. Rb1 $16) 13... Bg7 {
[%emt 0:03:08]} 14. b5 {[%emt 0:04:02]} a5 {[%emt 0:00:48]} (14... Ng6 $14) 15.
b6 $1 $16 {[%emt 0:01:46]} cxb6 {[%emt 0:02:30]} 16. Rb1 {[%emt 0:02:34]} ({
Better is} 16. Re1 $16) 16... Nf6 $14 {[%emt 0:05:41]} 17. Nb5 {[%emt 0:07:29]}
Bxb5 {[%emt 0:00:03]} 18. Rxb5 {[%emt 0:00:14]} Nd7 {[%emt 0:00:52]} 19. Qb1 {
[%emt 0:00:53]} (19. Qa1 $14) 19... Nc6 $2 {[%emt 0:05:38] [#]} (19... e4 $11 {
and Black has nothing to worry.} 20. Nh2 Rhf8) 20. Be3 $1 $18 {[%emt 0:02:42]}
Nb4 $2 {[%emt 0:08:44]} (20... e4 21. Nd2 $16) (20... f4 {is more resistant.}
21. Bxb6 Nxb6) 21. Nd2 {[%emt 0:04:06]} e4 {[%emt 0:05:16]} 22. Nc4 {[%emt 0:
00:00]} Qc6 {[%emt 0:03:24]} 23. Nxb6+ {[%emt 0:02:20]} Nxb6 {[%emt 0:00:05]
[%cal Yd7b6,Yb6a4,Ya4c3,Yc3e2]} 24. Rc5 {[%emt 0:01:36]} (24. Rxb6 Qc3 25. dxe4
f4 26. gxf4 gxf4 27. Bxf4 Bd4 $18) 24... Nxa4 {[%emt 0:01:57]} 25. Rxc6+ {
[%emt 0:00:16]} bxc6 {[%emt 0:00:49]} 26. dxe4 {[%emt 0:00:11]} f4 {[%emt 0:00:
28]} 27. gxf4 {[%emt 0:00:51]} gxf4 {[%emt 0:00:02]} 28. Bxf4 {[%emt 0:00:36]}
Nc3 {[%emt 0:00:13]} 29. Qb3 {[%emt 0:01:49]} (29. Qe1 $2 Nxc2 30. Qd2 Rxd2 $19
) 29... Ne2+ {[%emt 0:00:01]} 30. Kh1 {[%emt 0:01:59]} Nxf4 {[%emt 0:00:02]}
31. Qf7 {[%emt 0:01:07]} Nxg2 {[%emt 0:01:31]} 32. Qxg7 {[%emt 0:00:36] Really
sharp!} Rhg8 {[%emt 0:00:07]} 33. Qf6 {[%emt 0:00:52] And now Qf5+ would win.}
Rdf8 {[%emt 0:00:59]} 34. Qe6+ {[%emt 0:00:22]} Kc7 {[%emt 0:00:07]} 35. Qe5+ {
[%emt 0:00:27]} Kb6 {[%emt 0:00:42]} 36. Qd4+ {[%emt 0:01:11]} Kb5 {[%emt 0:00:
39]} 37. c3 $2 {[%emt 0:00:47]} (37. Rg1 $18) 37... Rf3 $1 $11 {[%emt 0:00:19]}
38. Qe5+ {[%emt 0:01:02]} (38. cxb4 $2 Rxh3+ 39. Kg1 Nh4+) 38... Ka6 {[%emt 0:
00:14]} (38... c5 $2 39. c4+ Ka4 40. Qa1+ (40. Qxc5 $2 {is a self mate.} Rxh3+
41. Kg1 Nh4+) 40... Ra3 41. Qd1+ Rb3 42. Rg1 $18) 39. Qe6 {[%emt 0:00:48]} ({
Don't blunder} 39. cxb4 $2 Rxh3+ 40. Qh2 Rxh2+ $19) 39... Rg5 $2 {[%emt 0:01:
48]} 40. cxb4 $18 {[%emt 0:00:34] White is clearly winning.} Nf4 {[%emt 0:00:
19]} 41. Qxc6+ {[%emt 0:30:20]} (41. b5+ $142 Kxb5 42. Rb1+ Kc5 43. Rc1+ Kd4
44. Qf6+ Re5 45. Qd6+ Rd5 46. exd5 Nxd5 47. Qxc6 Rxh3+ 48. Kg1) 41... Ka7 {
[%emt 0:30:08]} 42. Qc7+ {[%emt 0:00:34]} Ka8 {[%emt 0:00:36]} 43. Qc8+ {
[%emt 0:00:00]} Ka7 {[%emt 0:00:00]} 44. Qc7+ $2 {[%emt 0:00:00] Weighted
Error Value: White=0.31/Black=0.40} (44. h4 $18 Rh3+ {[#]} 45. Qxh3 $3 Nxh3 46.
hxg5 Nxg5 47. bxa5 Nxe4 48. Kg2) 1/2-1/2

[Event "44th Chess Olympiad Open 2022"]
[Site "Chennai"]
[Date "2022.08.01"]
[Round "4.55"]
[White "Kassis, Antoine"]
[Black "Boidiya, Sidi"]
[Result "1-0"]
[WhiteElo "2202"]
[BlackElo "1997"]
[Annotator "NA RC"]
[PlyCount "107"]
[EventDate "2022.??.??"]
[TimeControl "60"]

1. e4 {[%emt 0:00:22]} c5 {[%emt 0:00:05]} 2. Nf3 {[%emt 0:00:04]} Nc6 {
[%emt 0:00:04]} 3. d4 {[%emt 0:00:48]} cxd4 {[%emt 0:00:04]} 4. Nxd4 {[%emt 0:
00:00]} e5 {[%emt 0:00:19]} 5. Nb5 {[%emt 0:00:24]} a6 {[%emt 0:00:04]} 6. Nd6+
{[%emt 0:00:12]} Bxd6 {[%emt 0:00:08]} 7. Qxd6 {[%emt 0:00:05]} Qf6 {[%emt 0:
00:00]} 8. Qxf6 {[%emt 0:01:00]} Nxf6 {[%emt 0:00:07]} 9. Nc3 {[%emt 0:00:05]}
Nb4 {[%emt 0:00:08]} 10. Bd3 {[%emt 0:01:41]} b5 {[%emt 0:01:11]} 11. O-O {
[%emt 0:12:09]} Bb7 {[%emt 0:00:22]} 12. f4 {[%emt 0:12:44]} d6 {[%emt 0:05:56]
} 13. Bd2 {[%emt 0:08:27]} Nxd3 {[%emt 0:01:36]} 14. cxd3 {[%emt 0:00:14]} O-O
{[%emt 0:00:31]} 15. Rac1 {[%emt 0:09:26]} Nd7 {[%emt 0:03:59]} 16. Be3 {
[%emt 0:10:13]} Rac8 {[%emt 0:02:13]} 17. b4 {[%emt 0:11:38]} f5 {[%emt 0:00:
00]} 18. exf5 {[%emt 0:11:07]} d5 {[%emt 0:05:58]} 19. fxe5 {[%emt 0:00:10]}
Nxe5 {[%emt 0:00:11]} 20. Rfd1 {[%emt 0:13:08]} Rxf5 {[%emt 0:04:39]} 21. Bd4 {
[%emt 0:01:09]} Ng6 {[%emt 0:02:07]} 22. Ne2 {[%emt 0:01:53]} Re8 {[%emt 0:00:
00]} 23. Rc7 {[%emt 0:03:25]} Rxe2 {[%emt 0:02:05]} 24. Rxg7+ {[%emt 0:00:07]}
Kf8 {[%emt 0:00:21]} 25. Rxb7 {[%emt 0:00:05]} Nh4 {[%emt 0:01:46]} 26. Rc1 {
[%emt 0:01:06]} Rxg2+ {[%emt 0:05:30]} 27. Kh1 {[%emt 0:00:01]} Kg8 {[%emt 0:
00:00]} 28. Rc8+ {[%emt 0:00:28]} Rf8 {[%emt 0:00:08]} 29. Rxf8+ {[%emt 0:00:
00]} Kxf8 {[%emt 0:00:01]} 30. Rxh7 {[%emt 0:00:27]} Rg4 {[%emt 0:00:32]} 31.
Bc5+ {[%emt 0:00:49]} Kg8 {[%emt 0:08:44]} 32. Rd7 {[%emt 0:00:19]} Rf4 {
[%emt 0:00:42]} 33. Kg1 {[%emt 0:01:22]} Nf3+ {[%emt 0:00:30]} 34. Kg2 {
[%emt 0:00:22]} Ne1+ {[%emt 0:00:20]} 35. Kg3 {[%emt 0:00:11]} Rf3+ {[%emt 0:
00:00]} 36. Kg4 {[%emt 0:00:08]} Rxd3 {[%emt 0:00:39]} 37. h4 {[%emt 0:01:29]}
Nf3 {[%emt 0:00:19]} 38. Re7 {[%emt 0:00:43]} Nh2+ {[%emt 0:01:27]} 39. Kh5 {
[%emt 0:00:59]} Nf1 {[%emt 0:04:22]} 40. Ra7 {[%emt 0:00:40]} Ra3 {[%emt 0:00:
00]} 41. Kg6 {[%emt 0:30:34]} Rg3+ {[%emt 0:30:14]} 42. Kh6 {[%emt 0:00:00]}
Nh2 {[%emt 0:00:00]} 43. Rxa6 {[%emt 0:00:00]} Kf7 {[%emt 0:00:00]} 44. Rb6 {
[%emt 0:00:00]} Rg8 {[%emt 0:00:00]} 45. Bd4 {[%emt 0:00:00]} Rg4 {[%emt 0:00:
00]} 46. Bc5 {[%emt 0:01:31]} Rg8 {[%emt 0:00:00]} 47. Kh5 {[%emt 0:00:40]}
Rh8+ {[%emt 0:00:00]} 48. Kg5 {[%emt 0:00:04]} Nf3+ {[%emt 0:00:00]} 49. Kf4 {
[%emt 0:00:27]} Nxh4 {[%emt 0:00:00]} 50. Rxb5 {[%emt 0:00:41]} Ng6+ {[%emt 0:
00:00]} 51. Kg5 {[%emt 0:00:27]} Ne5 {[%emt 0:00:00]} 52. Rb7+ {[%emt 0:00:14]}
Kg8 {[%emt 0:00:00]} 53. Rb8+ {[%emt 0:00:04]} Kh7 {[%emt 0:00:00]} 54. Rxh8+ {
[%emt 0:00:04]} 1-0

[Event "44th Chess Olympiad Open 2022"]
[Site "Chennai"]
[Date "2022.08.01"]
[Round "4.55"]
[White "Mohamed Abderrahim, Taleb Mohamed"]
[Black "Khoder, Akram"]
[Result "1-0"]
[WhiteElo "2084"]
[BlackElo "2038"]
[Annotator "NA RC"]
[PlyCount "79"]
[EventDate "2022.??.??"]
[TimeControl "60"]

1. e4 {[%emt 0:00:04]} c5 {[%emt 0:00:17]} 2. c3 {[%emt 0:00:26]} Nf6 {[%emt 0:
00:00]} 3. e5 {[%emt 0:00:37]} Nd5 {[%emt 0:00:08]} 4. d4 {[%emt 0:00:24]} cxd4
{[%emt 0:00:11]} 5. Nf3 {[%emt 0:00:46]} Nc6 {[%emt 0:00:12]} 6. Bc4 {[%emt 0:
00:00]} Nb6 {[%emt 0:00:23]} 7. Bb3 {[%emt 0:00:36]} d5 {[%emt 0:00:29]} 8.
exd6 {[%emt 0:00:29]} Qxd6 {[%emt 0:00:05]} 9. O-O {[%emt 0:03:47]} Be6 {
[%emt 0:00:09]} 10. Bxe6 {[%emt 0:01:02]} Qxe6 {[%emt 0:00:08]} 11. Nxd4 {
[%emt 0:01:04]} Nxd4 {[%emt 0:00:10]} 12. Qxd4 {[%emt 0:00:21]} Rd8 {[%emt 0:
00:00]} 13. Qh4 {[%emt 0:01:48]} h5 {[%emt 0:01:27]} 14. Nd2 {[%emt 0:10:56]}
Qg4 {[%emt 0:13:05]} 15. Qxg4 {[%emt 0:05:24]} hxg4 {[%emt 0:00:08]} 16. Re1 {
[%emt 0:06:38]} Nd5 {[%emt 0:07:25]} 17. Nc4 {[%emt 0:04:15]} Rh5 {[%emt 0:00:
00]} 18. Bd2 {[%emt 0:14:23]} e6 {[%emt 0:02:24]} 19. Rad1 {[%emt 0:04:53]} Bd6
{[%emt 0:08:38]} 20. Nxd6+ {[%emt 0:06:24]} Rxd6 {[%emt 0:00:10]} 21. c4 {
[%emt 0:04:24]} Ne7 {[%emt 0:04:47]} 22. Bc3 {[%emt 0:03:48]} Rxd1 {[%emt 0:00:
00]} 23. Rxd1 {[%emt 0:00:01]} g6 {[%emt 0:04:34]} 24. b4 {[%emt 0:03:57]} b5 {
[%emt 0:06:43]} 25. Rd4 {[%emt 0:05:56]} bxc4 {[%emt 0:02:13]} 26. Rxc4 {
[%emt 0:00:14]} Rd5 {[%emt 0:00:43]} 27. Kf1 {[%emt 0:00:22]} f5 {[%emt 0:00:
00]} 28. a4 {[%emt 0:05:39]} Kd7 {[%emt 0:00:59]} 29. b5 {[%emt 0:01:41]} e5 {
[%emt 0:00:54]} 30. Ba5 {[%emt 0:01:38]} Rd4 {[%emt 0:02:54]} 31. Rxd4+ {
[%emt 0:03:22]} exd4 {[%emt 0:00:05]} 32. Ke2 {[%emt 0:01:38]} Ke6 {[%emt 0:00:
00]} 33. Kd3 {[%emt 0:01:45]} Kd5 {[%emt 0:00:14]} 34. Bd8 {[%emt 0:00:25]} Nc8
{[%emt 0:00:10]} 35. Bf6 {[%emt 0:00:24]} Nb6 {[%emt 0:01:18]} 36. Bxd4 {
[%emt 0:00:50]} Nxa4 {[%emt 0:00:03]} 37. Bxa7 {[%emt 0:00:14]} g5 {[%emt 0:00:
00]} 38. Bd4 {[%emt 0:00:14]} Kd6 {[%emt 0:01:51]} 39. Kc4 {[%emt 0:00:42]} Kc7
{[%emt 0:02:30]} 40. Kd5 {[%emt 0:00:19]} 1-0